bitfinex-derivatives/quotes_BTCF0:USTF0_20250822
["timestamp","ask_amount","ask_price","bid_price","bid_amount"]
[1755898270099,0.98778336,117030.0,117020.0,0.4038]
[1755898270804,1.05750907,117030.0,117020.0,0.4038]
[1755898271398,1.05750907,117030.0,117020.0,0.38578]
[1755898271593,1.05750907,117030.0,117020.0,0.4038]
[1755898272001,1.45931588,117030.0,117020.0,0.4038]
[1755898272199,1.45931588,117030.0,117020.0,0.3628]
[1755898272393,1.05750907,117030.0,117020.0,0.002]
[1755898272592,1.96189435,117030.0,117020.0,0.002]
[1755898273201,2.32269435,117030.0,117020.0,0.002]
[1755898273903,2.39275435,117030.0,117020.0,0.001]
[1755898274603,2.39275435,117030.0,117010.0,0.3608]
[1755898274803,0.57077264,117020.0,117010.0,0.3608]
[1755898274996,0.588376,117020.0,117010.0,0.3608]
[1755898275193,0.13618336,117020.0,117010.0,0.38378]
[1755898275502,0.588376,117020.0,117010.0,0.4018]
[1755898275902,0.13618336,117020.0,117010.0,0.4018]
[1755898276203,0.588376,117020.0,117010.0,0.4038]
[1755898277106,0.588376,117020.0,117010.0,0.3618]
[1755898277297,0.588376,117020.0,117010.0,0.38578]
[1755898277901,0.13618336,117020.0,117010.0,0.3628]
[1755898278104,0.588376,117020.0,117010.0,0.3628]
[1755898278803,0.49698336,117020.0,117010.0,0.02498]
[1755898279009,0.588376,117020.0,117010.0,0.02498]
[1755898279707,0.13618336,117020.0,117010.0,0.043]
[1755898279907,0.588376,117020.0,117010.0,0.043]
[1755898280999,0.588376,117020.0,117010.0,0.002]
[1755898281900,0.13618336,117020.0,117010.0,0.002]
[1755898282105,0.588376,117020.0,117010.0,0.002]
[1755898282408,0.13618336,117020.0,117010.0,0.002]
[1755898282604,0.588376,117020.0,117010.0,0.002]
[1755898283411,0.588376,117020.0,117010.0,0.02498]
[1755898283823,0.588376,117020.0,117010.0,0.002]
[1755898285814,0.588376,117020.0,117010.0,0.001]
[1755898286020,0.588376,117020.0,117010.0,0.002]
[1755898286224,0.588376,117020.0,117010.0,0.001]
[1755898286519,0.09512,117000.0,116990.0,0.02298]
[1755898286722,1.89664864,117000.0,116990.0,0.02298]
[1755898286924,1.444456,117000.0,116990.0,0.02298]
[1755898287525,1.89664864,117000.0,116990.0,0.02298]
[1755898287725,1.90535633,117000.0,116990.0,0.02298]
[1755898288326,1.90535633,117000.0,116990.0,0.042]
[1755898288327,1.45316369,117000.0,116990.0,0.042]
[1755898288728,1.45416369,117000.0,116990.0,0.042]
[1755898289330,1.00197105,117000.0,116990.0,0.042]
[1755898289522,1.45416369,117000.0,116990.0,0.042]
[1755898290325,1.00197105,117000.0,116990.0,0.042]
[1755898290526,1.45416369,117000.0,116990.0,0.042]
[1755898290923,1.00197105,117000.0,116990.0,0.042]
[1755898291125,1.45416369,117000.0,116990.0,0.042]
[1755898291829,1.52424369,117000.0,116990.0,0.042]
[1755898292029,1.52424369,117000.0,116990.0,0.4028]
[1755898292225,1.07205105,117000.0,116990.0,0.4028]
[1755898292525,1.07205105,117000.0,116990.0,0.85499264]
[1755898292731,1.52424369,117000.0,116990.0,0.85499264]
[1755898293131,1.52424369,117000.0,116990.0,0.4028]
[1755898293329,1.52424369,117000.0,116980.0,0.37982]
[1755898293330,0.03378,116990.0,116980.0,0.37982]
[1755898293533,0.11979,116990.0,116980.0,0.85358264]
[1755898293840,0.57198264,116990.0,116980.0,0.85358264]
[1755898294327,0.11979,116990.0,116980.0,0.40139]
[1755898294627,0.57198264,116990.0,116980.0,0.85458264]
[1755898295533,0.57198264,116990.0,116980.0,0.40239]
[1755898295831,0.11979,116990.0,116980.0,0.40239]
[1755898296031,0.13840173,116990.0,116980.0,0.40239]
[1755898296227,0.59059437,116990.0,116980.0,0.85458264]
[1755898296434,0.13840173,116990.0,116980.0,0.40239]
[1755898303230,0.54044515,116990.0,116980.0,0.38337]
[1755898303430,0.54044515,116990.0,116980.0,0.40239]
[1755898304833,0.13840173,116990.0,116980.0,0.40239]
[1755898305034,0.54044515,116990.0,116980.0,0.40239]
[1755898305439,0.13840173,116990.0,116980.0,0.40239]
[1755898305639,0.54044515,116990.0,116980.0,0.40239]
[1755898305934,0.04269173,116990.0,116980.0,1.05443342]
[1755898306139,0.01861173,116990.0,116980.0,1.05443342]
[1755898306334,0.06967,117000.0,116990.0,0.0865495]
[1755898306536,0.06967,117000.0,116990.0,0.84939292]
[1755898306837,0.06967,117000.0,116990.0,1.70691292]
[1755898307535,0.07067,117000.0,116990.0,1.70691292]
[1755898308845,0.07067,117000.0,116990.0,1.62143342]
[1755898309949,0.07067,117000.0,116990.0,1.70691282]
[1755898312944,0.09475,117000.0,116990.0,1.21939]
[1755898313144,0.09475,117000.0,116990.0,1.62143342]
[1755898314444,0.09475,117000.0,116990.0,1.70691282]
[1755898316650,0.12638,117000.0,116990.0,1.62143342]
[1755898316846,0.12638,117000.0,116990.0,1.89053342]
[1755898316847,0.14252,117000.0,116990.0,1.89053342]
[1755898317154,0.19046,117000.0,116990.0,0.63097]
[1755898317754,0.19046,117000.0,116990.0,1.03301342]
[1755898318456,0.19046,117000.0,116990.0,0.63097]
[1755898319755,0.07067,117000.0,116990.0,1.50143634]
[1755898320348,0.07067,117000.0,116990.0,1.56281368]
[1755898321656,0.07067,117000.0,116990.0,0.76371906]
[1755898321856,0.07067,117000.0,116990.0,1.5678059]
[1755898322057,0.07067,117000.0,116990.0,1.5648059]
[1755898322260,0.07067,117000.0,116990.0,1.5678059]
[1755898322556,0.07067,117000.0,116990.0,1.50643634]
[1755898323056,0.07067,117000.0,116990.0,1.56777634]
[1755898324357,0.07067,117000.0,116990.0,1.56477634]
[1755898324555,0.07067,117000.0,116990.0,1.56777634]
[1755898325359,0.07067,117000.0,116990.0,1.31777634]
[1755898325657,0.07067,117000.0,116990.0,1.25643634]
[1755898325852,0.07067,117000.0,116990.0,1.52553634]
[1755898327658,0.07067,117000.0,116990.0,0.7214495]
[1755898327862,0.07067,117000.0,116990.0,1.52553634]
[1755898328255,0.07067,117000.0,116990.0,1.77553634]
[1755898331256,0.07067,117000.0,116990.0,1.83687634]
[1755898331962,0.07067,117000.0,116990.0,1.0327895]
[1755898332164,0.07067,117000.0,116990.0,1.83687634]
[1755898334566,0.07067,117000.0,116990.0,1.77553634]
[1755898335260,0.07067,117000.0,116990.0,0.9714495]
[1755898335460,0.0933,117000.0,116990.0,1.77553634]
[1755898335665,0.07067,117000.0,116990.0,1.77553634]
[1755898336860,0.07067,117000.0,116990.0,0.9714495]
[1755898337062,0.07067,117000.0,116990.0,1.77553634]
[1755898337957,0.07067,117000.0,116990.0,1.8368489]
[1755898338859,0.10121,117000.0,116990.0,1.8368489]
[1755898339066,0.1858,117000.0,116990.0,2.03668548]
[1755898339267,0.1858,117000.0,116990.0,1.97537292]
[1755898340562,0.1858,117000.0,116990.0,1.5733295]
[1755898340767,0.1858,117000.0,116990.0,1.97537292]
[1755898341864,0.1858,117000.0,116990.0,1.88989342]
[1755898342264,0.1858,117000.0,116990.0,1.88948342]
[1755898342772,0.36613,117000.0,116990.0,1.48678]
[1755898343275,0.36613,117000.0,116990.0,1.88882342]
[1755898344474,0.36613,117000.0,116990.0,1.48678]
[1755898344673,0.36613,117000.0,116990.0,1.88882342]
[1755898345576,0.36613,117000.0,116990.0,0.3658]
[1755898345973,0.38484648,117000.0,116990.0,0.3658]
[1755898346568,0.36613,117000.0,116990.0,0.3658]
[1755898346770,0.76817342,117000.0,116990.0,0.3658]
[1755898346977,0.36613,117000.0,116990.0,0.3658]
[1755898348478,0.76817342,117000.0,116990.0,0.3658]
[1755898349972,0.51817342,117000.0,116990.0,0.3658]
[1755898351679,0.11613,117000.0,116990.0,0.3658]
[1755898354078,0.51817342,117000.0,116990.0,0.3658]
[1755898354376,0.78687083,117000.0,116990.0,0.3658]
[1755898354581,0.11728,116990.0,116980.0,0.3608]
[1755898354788,0.51932342,116990.0,116980.0,0.3608]
[1755898355178,0.11728,116990.0,116980.0,0.3608]
[1755898355371,0.51932342,116990.0,116980.0,0.3608]
[1755898355882,0.52132342,116990.0,116980.0,0.3618]
[1755898356385,0.52432342,116990.0,116980.0,0.3618]
[1755898356587,0.12228,116990.0,116980.0,0.3618]
[1755898356781,0.52432342,116990.0,116980.0,0.3618]
[1755898357883,0.12228,116990.0,116980.0,0.3618]
[1755898358073,0.52432342,116990.0,116980.0,0.3618]
[1755898358280,0.77432342,116990.0,116980.0,0.3618]
[1755898358580,0.79299336,116990.0,116980.0,0.3618]
[1755898359687,0.39094994,116990.0,116980.0,0.3618]
[1755898359986,0.79299336,116990.0,116980.0,0.3618]
[1755898360179,0.39094994,116990.0,116980.0,0.3618]
[1755898360588,0.37228,116990.0,116980.0,0.3618]
[1755898360787,0.39094525,116990.0,116980.0,0.3618]
[1755898360982,0.79298867,116990.0,116980.0,0.3618]
[1755898361988,0.39094525,116990.0,116980.0,0.3618]
[1755898362193,0.79298867,116990.0,116980.0,0.3618]
[1755898362688,0.79298867,116990.0,116980.0,0.37153]
[1755898362887,0.39094525,116990.0,116980.0,0.37153]
[1755898363079,0.79298867,116990.0,116980.0,0.37953]
[1755898363281,0.39094525,116990.0,116980.0,0.38453]
[1755898363483,0.79298867,116990.0,116980.0,0.38453]
[1755898363895,0.39094525,116990.0,116980.0,0.38453]
[1755898364188,0.79298867,116990.0,116980.0,0.38453]
[1755898364388,0.79298867,116990.0,116980.0,0.39837]
[1755898364884,0.39094525,116990.0,116980.0,0.39837]
[1755898365481,0.79298867,116990.0,116980.0,0.39837]
[1755898366183,0.39094525,116990.0,116980.0,0.39837]
[1755898366584,0.79298867,116990.0,116980.0,0.39837]
[1755898366789,0.39094525,116990.0,116980.0,0.39837]
[1755898367292,0.79298867,116990.0,116980.0,0.39837]
[1755898368190,0.14094525,116990.0,116980.0,0.39837]
[1755898368390,0.54298867,116990.0,116980.0,0.39837]
[1755898369093,0.14094525,116990.0,116980.0,0.39837]
[1755898372592,0.54298867,116990.0,116980.0,0.39837]
[1755898374984,0.14094525,116990.0,116980.0,0.39837]
[1755898375187,0.54298867,116990.0,116980.0,0.39837]
[1755898378704,0.14094525,116990.0,116980.0,0.39837]
[1755898380892,0.14236525,116990.0,116980.0,0.39837]
[1755898381092,0.04673525,116990.0,116980.0,0.80041342]
[1755898381292,0.06902525,116990.0,116980.0,0.80041342]
[1755898381492,0.07861525,116990.0,116980.0,0.80041342]
[1755898381693,0.12904525,116990.0,116980.0,0.80041342]
[1755898382201,0.12904525,116990.0,116980.0,0.39837]
[1755898384596,0.12904525,116990.0,116980.0,0.406868]
[1755898386099,0.12904525,116990.0,116980.0,0.80891142]
[1755898386702,0.12904525,116990.0,116980.0,0.406868]
[1755898389598,0.09424525,116990.0,116980.0,0.406868]
[1755898390198,0.12904525,116990.0,116980.0,0.406868]
[1755898390899,0.14364525,116990.0,116980.0,0.406868]
[1755898391299,0.02366525,116990.0,116980.0,1.14439842]
[1755898391699,0.00366525,116990.0,116980.0,1.41349842]
[1755898392005,0.07008,117000.0,116990.0,0.0854797]
[1755898392203,0.07008,117000.0,116990.0,1.69348312]
[1755898392405,0.07008,117000.0,116990.0,1.94348312]
[1755898393309,0.07408,117000.0,116990.0,1.94448312]
[1755898393508,0.07808,117000.0,116990.0,1.94448312]
[1755898393912,0.07408,117000.0,116990.0,1.94448312]
[1755898394206,0.07608,117000.0,116990.0,1.94448312]
[1755898395208,0.07308,117000.0,116990.0,1.94348312]
[1755898399518,0.07308,117000.0,116990.0,1.5414397]
[1755898399711,0.07308,117000.0,116990.0,1.94348312]
[1755898399915,0.09707,117000.0,116990.0,1.94348312]
[1755898402020,0.09707,117000.0,116990.0,1.5414397]
[1755898402210,0.09707,117000.0,116990.0,1.94348312]
[1755898408623,0.09607,117000.0,116990.0,1.94348312]
[1755898408821,0.07208,117000.0,116990.0,2.34552654]
[1755898409121,0.07208,117000.0,116990.0,2.4068391]
[1755898409316,0.07208,117000.0,116990.0,2.07317759]
[1755898409517,0.07308,117000.0,116990.0,2.47522101]
[1755898409717,0.07308,117000.0,116990.0,2.01186503]
[1755898409919,0.07308,117000.0,116990.0,1.76186503]
[1755898410117,0.07108,117000.0,116990.0,2.41590845]
[1755898410321,0.02411,117020.0,117010.0,0.085465]
[1755898410623,0.02411,117020.0,117010.0,2.07245945]
[1755898410824,0.0551,117020.0,117010.0,2.07245945]
[1755898412023,0.0571,117020.0,117010.0,2.07345945]
[1755898412526,0.02611,117020.0,117010.0,2.32345945]
[1755898412720,0.002,117020.0,117010.0,2.32345945]
[1755898412919,0.003,117020.0,117010.0,2.32345945]
[1755898414126,0.003,117020.0,117010.0,1.92141603]
[1755898414328,0.02711,117020.0,117010.0,2.32345945]
[1755898417930,0.02611,117020.0,117010.0,2.32345945]
[1755898418930,0.02411,117020.0,117010.0,2.32245945]
[1755898419229,0.02511,117020.0,117010.0,2.32245945]
[1755898422236,0.02511,117020.0,117010.0,1.92041603]
[1755898422734,0.02511,117020.0,117010.0,2.32245945]
[1755898423136,0.11749,117020.0,117010.0,2.23699445]
[1755898423328,0.11749,117020.0,117010.0,1.98699445]
[1755898424127,0.11749,117020.0,117010.0,2.07245975]
[1755898424328,0.11749,117020.0,117010.0,2.12237342]
[1755898426434,0.11749,117020.0,117010.0,2.07215823]
[1755898427439,0.11749,117020.0,117010.0,1.98669293]
[1755898428140,0.03013,117030.0,117020.0,0.0854581]
[1755898428340,0.02411,117050.0,117040.0,0.0854396]
[1755898428543,0.02411,117050.0,117040.0,2.06063223]
[1755898430938,0.02511,117050.0,117040.0,2.06063223]
[1755898433141,0.02511,117050.0,117040.0,2.46237413]
[1755898433945,0.02511,117050.0,117040.0,1.65889033]
[1755898434243,0.02511,117050.0,117040.0,2.46237413]
[1755898440241,0.04736,117050.0,117040.0,2.46237413]
[1755898441045,0.02511,117050.0,117040.0,2.46237413]
[1755898441441,0.04736,117050.0,117040.0,1.65889033]
[1755898441746,0.04736,117050.0,117040.0,2.46237413]
[1755898442046,0.05736,117050.0,117040.0,2.46237413]
[1755898442947,0.07293,117050.0,117040.0,2.46237413]
[1755898443146,0.1048,117050.0,117040.0,2.46237413]
[1755898448351,0.1048,117050.0,117040.0,2.11056413]
[1755898448740,0.07293,117050.0,117040.0,2.11056413]
[1755898448940,0.02325,117050.0,117040.0,2.56223793]
[1755898449147,0.001,117050.0,117040.0,2.56223793]
[1755898449552,0.02578,117050.0,117040.0,2.56223793]
[1755898450451,0.04803,117050.0,117040.0,2.56223793]
[1755898450853,0.05803,117050.0,117040.0,2.56223793]
[1755898451053,0.0899,117050.0,117040.0,2.11056413]
[1755898451358,0.05803,117050.0,117040.0,2.11056413]
[1755898452152,0.05803,117050.0,117040.0,2.56223793]
[1755898455856,0.05803,117050.0,117040.0,2.83133793]
[1755898456062,0.11942,117050.0,117040.0,2.83133793]
[1755898456558,0.10547,117050.0,117040.0,2.83133793]
[1755898456862,0.03578,117050.0,117040.0,2.83133793]
[1755898457061,0.02578,117050.0,117040.0,2.83133793]
[1755898457460,0.02578,117050.0,117040.0,2.89265049]
[1755898458666,0.02578,117050.0,117040.0,1.98930289]
[1755898458965,0.02578,117050.0,117040.0,2.89265049]
[1755898459359,0.02578,117050.0,117040.0,2.83133793]
[1755898460264,0.02478,117050.0,117040.0,2.83133793]
[1755898460561,0.02478,117050.0,117040.0,2.83333793]
[1755898460762,0.02478,117050.0,117040.0,2.83533793]
[1755898460965,0.04703,117050.0,117040.0,2.83533793]
[1755898461167,0.04703,117050.0,117040.0,2.83133793]
[1755898461353,0.04703,117050.0,117040.0,2.89474466]
[1755898462661,0.02478,117050.0,117040.0,2.89474466]
[1755898464667,0.05703,117050.0,117040.0,2.83333793]
[1755898466371,0.04703,117050.0,117040.0,2.83333793]
[1755898466571,0.02478,117050.0,117040.0,2.83333793]
[1755898466872,0.03478,117050.0,117040.0,2.83333793]
[1755898467073,0.05703,117050.0,117040.0,2.83333793]
[1755898467371,0.05703,117050.0,117040.0,2.89475844]
[1755898468970,0.04703,117050.0,117040.0,2.89475844]
[1755898469375,0.05681,117050.0,117040.0,2.89475844]
[1755898472476,0.07325,117050.0,117040.0,2.89475844]
[1755898472667,0.12092,117050.0,117040.0,2.89475844]
[1755898473374,0.12092,117050.0,117040.0,2.83333793]
[1755898477880,0.0877,117050.0,117040.0,1.45270453]
[1755898478086,0.12092,117050.0,117040.0,2.35395873]
[1755898480782,0.12092,117050.0,117040.0,1.90228493]
[1755898481078,0.12092,117050.0,117040.0,2.35395873]
[1755898482084,0.37092,117050.0,117040.0,2.35395873]
[1755898484682,0.37092,117050.0,117040.0,1.0541542]
[1755898484883,0.9080301,117050.0,117040.0,0.6319]
[1755898485083,0.9080301,117050.0,117040.0,0.3628]
[1755898485084,0.4563563,117050.0,117040.0,0.3628]
[1755898485289,0.4755958,117050.0,117040.0,0.3628]
[1755898485592,0.9272696,117050.0,117040.0,0.8144738]
[1755898486883,0.4755958,117050.0,117040.0,0.8144738]
[1755898487079,0.9272696,117050.0,117040.0,0.8144738]
[1755898487881,0.9272696,117050.0,117040.0,0.3628]
[1755898488289,0.9272696,117050.0,117040.0,0.8144738]
[1755898488793,0.4755958,117050.0,117040.0,0.8144738]
[1755898488992,0.1923758,117050.0,117040.0,1.1752738]
[1755898489289,0.2063563,117050.0,117040.0,1.1752738]
[1755898490293,0.2063563,117050.0,117040.0,1.12516139]
[1755898490996,0.2063563,117050.0,117040.0,1.96416139]
[1755898493892,0.2063563,117050.0,117040.0,1.12516139]
[1755898495081,0.2063563,117050.0,117040.0,0.7236]
[1755898495289,0.2063563,117050.0,117040.0,1.12516139]
[1755898495787,0.2063563,117050.0,117040.0,0.7236]
[1755898495985,0.2063563,117050.0,117040.0,1.12516139]
[1755898496293,0.2063563,117050.0,117040.0,0.7236]
[1755898496494,0.2063563,117050.0,117040.0,1.12516139]
[1755898499889,0.2063563,117050.0,117040.0,0.7236]
[1755898500095,0.2063563,117050.0,117040.0,1.12516139]
[1755898500797,0.2063563,117050.0,117040.0,0.7236]
[1755898501101,0.2063563,117050.0,117040.0,1.12516139]
[1755898501485,0.1422463,117050.0,117040.0,1.12516139]
[1755898501696,0.1102163,117050.0,117040.0,1.12516139]
[1755898502995,0.1325063,117050.0,117040.0,1.12516139]
[1755898504295,0.1325063,117050.0,117040.0,0.7236]
[1755898504497,0.1325063,117050.0,117040.0,1.12516139]
[1755898504795,0.1416563,117050.0,117040.0,1.12516139]
[1755898505891,0.1102163,117050.0,117040.0,1.12516139]
[1755898506092,0.0854363,117050.0,117040.0,1.61216608]
[1755898506298,0.0854363,117050.0,117040.0,1.88126608]
[1755898506890,0.0854363,117050.0,117040.0,1.9003327]
[1755898507292,0.0854363,117050.0,117040.0,2.25196801]
[1755898507494,0.1086663,117050.0,117040.0,2.6535294]
[1755898507801,0.0854363,117050.0,117040.0,2.7389727]
[1755898507999,0.02323,117060.0,117040.0,2.7389727]
[1755898508298,0.04306363,117060.0,117050.0,0.3608]
[1755898508501,0.06535363,117060.0,117050.0,0.76236139]
[1755898508801,0.07450363,117060.0,117050.0,0.76236139]
[1755898509302,0.02323,117060.0,117050.0,0.76236139]
[1755898510095,0.04552,117060.0,117050.0,0.76236139]
[1755898510297,0.04552,117060.0,117050.0,0.81245263]
[1755898510904,0.04552,117060.0,117050.0,0.3608]
[1755898511105,0.04552,117060.0,117050.0,0.81245263]
[1755898511405,0.02323,117060.0,117050.0,0.81245263]
[1755898511907,0.02423,117060.0,117050.0,0.81245263]
[1755898512206,0.02423,117060.0,117050.0,0.6299]
[1755898512407,0.02423,117060.0,117050.0,1.53320526]
[1755898512608,0.04652,117060.0,117050.0,1.53320526]
[1755898512808,0.04652,117060.0,117050.0,1.08155263]
[1755898514811,0.05567,117060.0,117050.0,1.08155263]
[1755898515710,0.07560724,117060.0,117050.0,1.08155263]
[1755898516406,0.07560785,117060.0,117050.0,1.08155263]
[1755898516810,0.07560785,117060.0,117050.0,0.6299]
[1755898517007,0.07560785,117060.0,117050.0,1.08155263]
[1755898517703,0.07560785,117060.0,117050.0,0.6299]
[1755898518100,0.07560785,117060.0,117050.0,1.08155263]
[1755898518903,0.07560785,117060.0,117050.0,1.53320526]
[1755898524720,0.05567,117060.0,117050.0,1.53320526]
[1755898533831,0.07534927,117060.0,117050.0,1.53320526]
[1755898536736,0.07534927,117060.0,117050.0,1.26410526]
[1755898538539,0.07534927,117060.0,117050.0,1.34954146]
[1755898538942,0.04390927,117060.0,117050.0,1.34954146]
[1755898539244,0.001,117060.0,117050.0,1.66099566]
[1755898539438,0.001,117060.0,117050.0,1.59954146]
[1755898539639,0.02069539,117060.0,117050.0,1.59954146]
[1755898540443,0.001,117060.0,117050.0,1.59954146]
[1755898541033,0.0206941,117060.0,117050.0,1.59954146]
[1755898541737,0.001,117060.0,117050.0,1.59954146]
[1755898543243,0.001,117060.0,117050.0,1.72811227]
[1755898544948,0.001,117060.0,117050.0,0.76335281]
[1755898545247,0.001,117060.0,117050.0,1.66665807]
[1755898546247,0.02399,117070.0,117060.0,0.10477559]
[1755898546439,0.04359731,117070.0,117060.0,2.20544085]
[1755898548553,0.04459731,117070.0,117060.0,2.20544085]
[1755898549653,0.06771731,117070.0,117060.0,1.30213559]
[1755898549853,0.06771731,117070.0,117060.0,2.20544085]
[1755898551455,0.04459731,117070.0,117060.0,2.20544085]
[1755898551954,0.02499,117070.0,117060.0,2.20544085]
[1755898552148,0.04460673,117070.0,117060.0,2.20544085]
[1755898552356,0.02499,117070.0,117060.0,2.20544085]
[1755898552956,0.04460639,117070.0,117060.0,2.20544085]
[1755898553546,0.02499,117070.0,117060.0,2.20544085]
[1755898558761,0.02499,117070.0,117060.0,2.26689505]
[1755898561062,0.02499,117070.0,117060.0,2.20544085]
[1755898564564,0.02499,117070.0,117060.0,2.56624085]
[1755898567373,0.04413436,117070.0,117060.0,2.56624085]
[1755898569061,0.02499,117070.0,117060.0,2.56624085]
[1755898570466,0.13768442,117070.0,117060.0,2.48081195]
[1755898571170,0.13768442,117070.0,117060.0,2.56624105]
[1755898572170,0.09113442,117070.0,117060.0,2.56624105]
[1755898572668,0.09113442,117070.0,117060.0,1.66293579]
[1755898572858,0.09113442,117070.0,117060.0,2.56624105]
[1755898575264,0.10606442,117070.0,117060.0,2.48081195]
[1755898575473,0.13768442,117070.0,117060.0,2.48081195]
[1755898576969,0.13768442,117070.0,117060.0,2.56624105]
[1755898579172,0.13768442,117070.0,117060.0,1.66293579]
[1755898579371,0.13768442,117070.0,117060.0,2.56624105]
[1755898580174,0.11854,117070.0,117060.0,2.56624105]
[1755898580878,0.1376893,117070.0,117060.0,2.56624105]
[1755898581675,0.1060693,117070.0,117060.0,2.48081195]
[1755898581975,0.1376893,117070.0,117060.0,2.48081195]
[1755898582978,0.1376893,117070.0,117060.0,2.56624095]
[1755898585988,0.11854,117070.0,117060.0,2.56624095]
[1755898586481,0.0439392,117070.0,117060.0,2.56624095]
[1755898586687,0.02499,117070.0,117060.0,2.56624095]
[1755898586886,0.02499,117070.0,117060.0,2.54226615]
[1755898587182,0.02499,117070.0,117060.0,1.57750669]
[1755898587482,0.04702,117070.0,117060.0,2.48081195]
[1755898587783,0.04702,117070.0,117060.0,2.54226615]
[1755898587983,0.04702,117070.0,117060.0,2.48081195]
[1755898588285,0.05669,117070.0,117060.0,2.48081195]
[1755898589183,0.09021,117070.0,117060.0,2.48081195]
[1755898589385,0.09021,117070.0,117060.0,1.57750669]
[1755898589586,0.05669,117070.0,117060.0,2.48081195]
[1755898593588,0.05669,117070.0,117060.0,2.54226615]
[1755898594589,0.05669,117070.0,117060.0,2.48081195]
[1755898594787,0.05669,117070.0,117060.0,2.56624155]
[1755898595394,0.12091,117070.0,117060.0,2.56624155]
[1755898595595,0.08739,117070.0,117060.0,1.79113575]
[1755898595895,0.12091,117070.0,117060.0,2.62405575]
[1755898597100,0.08739,117070.0,117060.0,2.62405575]
[1755898597495,0.07327,117070.0,117060.0,2.62405575]
[1755898597792,0.05669,117070.0,117060.0,2.62405575]
[1755898597996,0.05669,117070.0,117060.0,2.89315575]
[1755898598197,0.03466,117070.0,117060.0,2.89315575]
[1755898599092,0.05723,117070.0,117060.0,2.89315575]
[1755898599496,0.05723,117070.0,117060.0,1.98985049]
[1755898599698,0.05723,117070.0,117060.0,2.89315575]
[1755898599906,0.03466,117070.0,117060.0,2.89315575]
[1755898600695,0.05723,117070.0,117060.0,1.92839629]
[1755898600896,0.05723,117070.0,117060.0,2.83170155]
[1755898601999,0.05723,117070.0,117060.0,1.92839629]
[1755898602199,0.05723,117070.0,117060.0,2.83170155]
[1755898602390,0.0234,117090.0,117070.0,0.0854181]
[1755898602590,0.04226162,117090.0,117080.0,2.45734526]
[1755898602796,0.04226162,117090.0,117080.0,2.54276046]
[1755898602996,0.04226162,117090.0,117080.0,2.09110783]
[1755898603800,0.06483162,117090.0,117080.0,1.65641131]
[1755898604001,0.06483162,117090.0,117080.0,2.10806394]
[1755898604397,0.06483162,117090.0,117080.0,1.65641131]
[1755898604701,0.06483162,117090.0,117080.0,2.11667785]
[1755898604905,0.07650162,117090.0,117080.0,2.11667785]
[1755898605094,0.11002162,117090.0,117080.0,1.66502522]
[1755898605292,0.14072162,117090.0,117080.0,2.11667785]
[1755898605601,0.13872162,117090.0,117080.0,2.11667785]
[1755898605802,0.13972162,117090.0,117080.0,2.11667785]
[1755898606802,0.13972162,117090.0,117080.0,2.38577785]
[1755898608313,0.84137425,117090.0,117080.0,1.00765611]
[1755898608605,0.84137425,117090.0,117080.0,2.29138874]
[1755898608808,0.38972162,117090.0,117080.0,2.29138874]
[1755898609405,0.38972162,117090.0,117080.0,2.29994509]
[1755898610304,0.38972162,117090.0,117080.0,2.03084509]
[1755898613115,0.38972162,117090.0,117080.0,2.02228874]
[1755898613913,0.38972162,117090.0,117080.0,1.57063611]
[1755898614107,0.38972162,117090.0,117080.0,2.02228874]
[1755898616912,0.84137425,117090.0,117080.0,2.02228874]
[1755898618209,0.38972162,117090.0,117080.0,2.02228874]
[1755898618410,0.38972162,117090.0,117080.0,1.19020874]
[1755898621818,0.38972162,117090.0,117080.0,0.73855611]
[1755898622116,0.38972162,117090.0,117080.0,1.19020874]
[1755898625311,0.13972162,117090.0,117080.0,1.19020874]
[1755898625712,0.13972162,117090.0,117080.0,1.17325263]
[1755898625713,0.59137425,117090.0,117080.0,1.17325263]
[1755898625914,0.84137425,117090.0,117080.0,1.17325263]
[1755898626418,0.59137425,117090.0,117080.0,1.17325263]
[1755898626613,0.59137425,117090.0,117080.0,0.7216]
[1755898627008,0.59137425,117090.0,117080.0,1.17325263]
[1755898627210,0.84137425,117090.0,117080.0,0.7216]
[1755898627408,0.84137425,117090.0,117080.0,0.3608]
[1755898627614,0.38972162,117090.0,117080.0,0.3608]
[1755898627913,0.84137425,117090.0,117080.0,0.81245263]
[1755898628420,0.84137425,117090.0,117080.0,0.3608]
[1755898628623,0.84137425,117090.0,117080.0,0.81245263]
[1755898629323,1.67193425,117090.0,117080.0,0.81245263]
[1755898629522,1.67193425,117090.0,117080.0,0.3608]
[1755898629722,1.67193425,117090.0,117070.0,0.81245263]
[1755898629926,1.60089425,117090.0,117080.0,0.45165263]
[1755898630122,1.60089425,117090.0,117070.0,0.3608]
[1755898630325,1.60089425,117090.0,117080.0,0.45165263]
[1755898630716,1.35089425,117090.0,117080.0,0.45165263]
[1755898631022,1.42000425,117090.0,117080.0,0.45165263]
[1755898631919,1.42100425,117090.0,117080.0,0.45165263]
[1755898632117,0.1029,117080.0,117070.0,0.81245263]
[1755898632318,0.58932425,117080.0,117070.0,0.81245263]
[1755898633519,0.58932425,117080.0,117070.0,0.81345263]
[1755898634625,0.58932425,117080.0,117070.0,0.81445263]
[1755898635322,0.13767162,117080.0,117070.0,0.81445263]
[1755898635524,0.58932425,117080.0,117070.0,0.81445263]
[1755898637128,0.59780442,117080.0,117070.0,0.81445263]
[1755898639223,0.14615179,117080.0,117070.0,0.81445263]
[1755898639423,0.59780442,117080.0,117070.0,0.81445263]
[1755898640926,0.5978323,117080.0,117070.0,0.81445263]
[1755898644836,0.5978323,117080.0,117070.0,0.3628]
[1755898645131,0.5978323,117080.0,117070.0,0.81445263]
[1755898648532,0.14617967,117080.0,117070.0,0.81445263]
[1755898648734,0.5978323,117080.0,117070.0,0.81445263]
[1755898660339,0.5978323,117080.0,117070.0,0.3628]
[1755898660639,0.5978323,117080.0,117070.0,0.81445263]
[1755898660942,0.5978323,117080.0,117070.0,0.3628]
[1755898661139,0.5978323,117080.0,117070.0,0.81445263]
[1755898661837,0.8478323,117080.0,117070.0,0.3628]
[1755898662039,0.8478323,117080.0,117070.0,0.002]
[1755898665543,0.39617967,117080.0,117070.0,0.002]
[1755898665744,0.8478323,117080.0,117070.0,0.002]
[1755898666244,1.2086323,117080.0,117070.0,0.002]
[1755898666638,1.1385223,117080.0,117050.0,0.81245263]
[1755898666839,0.53208263,117060.0,117050.0,0.81765263]